fUST/lending_fUST_20250804
["ID","MTS","AMOUNT","RATE_DAILY","PERIOD"]
[377076872,1754247038641,-6854.10549278,0.000395,120]
[377076873,1754247038652,-2109.52536978,0.000396,2]
[377076874,1754247038662,-681.34402084,0.00039669,2]
[377076875,1754247038671,-681.34402081,0.00039677,2]
[377076876,1754247038683,-204.07747062,0.00039684,2]
[377076877,1754247038693,-681.34402081,0.00039685,2]
[377076878,1754247038703,-681.34402081,0.00039692,2]
[377076879,1754247038713,-289.18851,0.000397,120]
[377076880,1754247038723,-10011.60670953,0.000397,120]
[377076881,1754247038732,-681.34402081,0.000397,2]
[377076882,1754247038742,-898.25,0.00039749,10]
[377076883,1754247038752,-748.54,0.00039749,10]
[377076884,1754247038761,-623.78,0.00039749,10]
[377076885,1754247038771,-156.82,0.00039759,3]
[377076887,1754247038780,-470.48,0.00039759,3]
[377076888,1754247038790,-214.95118955,0.00039759,3]
[377076889,1754247038800,-42877.2665627,0.00039759,3]
[377076890,1754247038811,-622.0896392,0.00039768,31]
[377076891,1754247038821,-5103.32182446,0.00039769,120]
[377076892,1754247038833,-9281.73817554,0.00039769,120]
[377076893,1754247038843,-3738.94512441,0.00039769,3]
[377076894,1754247038855,-37158.07744602,0.00039769,3]
[377076895,1754247038868,-44857.51055487,0.00039769,3]
[377076896,1754247038877,-500.0,0.00039773,5]
[377076897,1754247038888,-502.01193188,0.00039773,5]
[377076898,1754247038897,-500.0,0.00039773,5]
[377076899,1754247038907,-150.0,0.00039773,5]
[377076900,1754247038917,-156190.29514839,0.00039779,3]
[377076901,1754247038929,-15318.77110261,0.00039779,3]
[377076902,1754247038939,-45.61174498,0.00039789,2]
[377076903,1754247038958,-5715.08222422,0.00039789,2]
[377076904,1754247038971,-74628.50101985,0.00039789,2]
[377076905,1754247038983,-2295.0,0.00039789,2]
[377076979,1754247040764,-4383.23599508,0.00039789,2]
[377076980,1754247040840,-459.36775664,0.00039789,2]
[377076990,1754247043573,-519.82,0.00039779,10]
[377076991,1754247043583,-15999.9567912,0.00039789,2]
[377076992,1754247043595,-1309.60459778,0.00039789,2]
[377076993,1754247043606,-90890.21108143,0.00039789,2]
[377076994,1754247043627,-52372.74580063,0.00039789,2]
[377076997,1754247043639,-447.73905067,0.00039789,2]
[377077030,1754247046580,-11665.55949736,0.00039789,2]
[377077035,1754247046741,-6647.16003296,0.00039789,2]
[377077037,1754247850559,175.573884,0.00025778,2]
[377077038,1754247895624,160.383954,0.00013699,2]
[377077041,1754248000190,-183.66317847,0.00028697,22]
[377077050,1754248155853,5000.0,0.00026501,2]
[377077089,1754248231918,-499.08850892,0.00028702,22]
[377077092,1754248231929,-150.0,0.00029963,2]
[377077094,1754248231939,-4000.0667958,0.00029964,2]
[377077096,1754248231949,-249.3417392,0.00030062,2]
[377077098,1754248231960,-400.0,0.00030109,2]
[377077100,1754248231969,-1600.0,0.00030109,2]
[377077102,1754248231979,-400.0,0.00030109,2]
[377077104,1754248231988,-400.0,0.0003011,2]
[377077106,1754248231998,-300.0,0.0003011,2]
[377077108,1754248232010,-300.0,0.0003011,2]
[377077110,1754248232020,-237.927878,0.00030111,2]
[377077113,1754248232030,-500.0,0.00030134,2]
[377077115,1754248232040,-500.0,0.00030134,2]
[377077117,1754248232051,-500.0,0.00030134,2]
[377077119,1754248232061,-442.82179981,0.00030134,2]
[377077121,1754248232070,-616.99978393,0.00030134,2]
[377077123,1754248232080,-538.95005348,0.00030134,2]
[377077125,1754248232091,-500.0,0.00030134,2]
[377077127,1754248232103,-500.0,0.00030134,2]
[377077129,1754248232113,-500.0,0.00030134,2]
[377077131,1754248232124,-500.0,0.00030134,2]
[377077133,1754248232133,-379.86854724,0.00030134,2]
[377077135,1754248232143,-272.10095031,0.00030134,2]
[377077137,1754248232153,-500.0,0.00030134,2]
[377077139,1754248232164,-422.75656817,0.00030134,2]
[377077141,1754248232173,-500.0,0.00030134,2]
[377077143,1754248232183,-50000.0,0.00030135,2]
[377077156,1754248232318,-501.83596661,0.00030173,5]
[377077157,1754248232329,-500.0,0.00030825,5]
[377077158,1754248232339,-1982.49834231,0.00031211,2]
[377077159,1754248232348,-160.383954,0.00031311,2]
[377077161,1754248232358,-195.3829843,0.00031332,2]
[377077162,1754248232368,-2146.2068154,0.00031784,2]
[377077163,1754248232377,-560.0,0.00032447,2]
[377077164,1754248232387,-200.0,0.00032447,3]
[377077165,1754248232396,-200.0,0.00032448,3]
[377077166,1754248232406,-2054.0,0.00032585,3]
[377077167,1754248232415,-500.0,0.00032673,5]
[377077168,1754248232425,-500.0,0.00032673,5]
[377077169,1754248232434,-500.0,0.00032673,5]
[377077170,1754248232444,-500.01894309,0.00032673,5]
[377077171,1754248232453,-562.08442881,0.00032673,5]
[377077172,1754248232463,-500.0,0.00032673,5]
[377077173,1754248232472,-500.0,0.00032673,5]
[377077174,1754248232482,-500.0,0.00032673,5]
[377077175,1754248232497,-500.0,0.00032673,5]
[377077176,1754248232507,-500.0,0.000327,5]
[377077177,1754248232516,-200.0,0.00033121,15]
[377077178,1754248232527,-200.0,0.00033121,15]
[377077179,1754248232536,-200.0,0.00033121,15]
[377077180,1754248232546,-500.0,0.00033221,5]
[377077181,1754248232556,-1070.85699928,0.00033221,5]
[377077182,1754248232566,-502.39595311,0.00033248,5]
[377077183,1754248232575,-500.0,0.000333,5]
[377077184,1754248232585,-500.0,0.000333,5]
[377077185,1754248232595,-700.00901795,0.00033848,5]
[377077186,1754248232604,-1000.0,0.00033848,5]
[377077187,1754248232614,-358.88,0.000339,2]
[377077188,1754248232623,-360.0,0.00034967,2]
[377077189,1754248232632,-184.36,0.00035062,40]
[377077190,1754248232642,-6985.7267346,0.00035062,2]
[377077191,1754248232652,-200.0,0.00036276,15]
[377077192,1754248232661,-200.0,0.00036276,15]
[377077193,1754248232670,-200.0,0.00036276,15]
[377077194,1754248232680,-240.0,0.00036276,15]
[377077195,1754248232689,-2000.0,0.00037,90]
[377077196,1754248232699,-386.33,0.0003799,10]
[377077197,1754248232708,-321.94,0.0003799,10]
[377077198,1754248232718,-958.03892474,0.0003799,3]
[377077199,1754248232728,-2344.16354,0.00038,10]
[377077200,1754248232739,-2000.0,0.00038,90]
[377077201,1754248232749,-281.1,0.00038053,10]
[377077202,1754248232758,-635.0,0.00038063,2]
[377077203,1754248232768,-186.62753628,0.00038292,120]
[377077204,1754248232778,-2000.0,0.00039,90]
[377077205,1754248232788,-160.0,0.00039376,2]
[377077206,1754248232799,-3969.69933695,0.0003954,2]
[377077207,1754248232809,-215.14063906,0.000396,2]
[377077208,1754248232819,-215.14063902,0.00039647,2]
[377077209,1754248232830,-4790.1946237,0.00039669,3]
[377077210,1754248232839,-500.0,0.00039673,5]
[377077211,1754248232849,-503.3165218,0.00039673,5]
[377077212,1754248232859,-500.0,0.00039673,5]
[377077213,1754248232868,-13785.68,0.00039678,120]
[377077214,1754248232878,-279.79,0.00039679,3]
[377077215,1754248232887,-4688.34825231,0.00039679,3]
[377077216,1754248232900,-2975.96314561,0.00039679,3]
[377077217,1754248232910,-958.03892474,0.0003968,3]
[377077218,1754248232920,-435.46274744,0.00039688,15]
[377077219,1754248232930,-2434.09261901,0.00039689,2]
[377077220,1754248232941,-10793.44730196,0.00039689,2]
[377077258,1754248237823,-407.0,0.00036866,2]
[377077259,1754248237838,-268.29,0.0003799,10]
[377077260,1754248237849,-169.53189436,0.00039589,2]
[377077261,1754248237858,-169.53189435,0.00039595,2]
[377077262,1754248237868,-839.42,0.00039679,3]
[377077263,1754248237877,-6266.16303266,0.00039689,2]
[377077264,1754248237889,-14775.11568863,0.00039689,2]
[377077265,1754248237935,-379.2939947,0.00039689,2]
[377077266,1754248237946,-3469.52195489,0.00039689,2]
[377077267,1754248237996,-367.38755231,0.00039689,2]
[377077268,1754248238008,-23247.41684903,0.00039689,2]
[377077269,1754248238019,-14896.08783615,0.00039689,2]
[377077274,1754248240041,-322.99,0.000339,2]
[377077275,1754248240050,-7678.20277384,0.00039689,2]
[377077276,1754248240145,-285693.27039682,0.00039689,2]
[377077277,1754248240155,-215.14063902,0.00039695,2]
[377077278,1754248240165,-7162.14321052,0.000397,120]
[377077299,1754248243080,-2837.85678948,0.000397,120]
[377077300,1754248243096,-160.0,0.000397,120]
[377077301,1754248243111,-200.0,0.00039733,30]
[377077302,1754248243122,-200.0,0.00039733,30]
[377077303,1754248243134,-200.0,0.00039733,30]
[377077304,1754248243149,-200.0,0.00039733,30]
[377077305,1754248243165,-375.0,0.00039733,30]
[377077306,1754248243176,-215.14063902,0.00039742,2]
[377077307,1754248243189,-958.03892474,0.00039778,3]
[377077308,1754248243202,-151.0,0.00039778,10]
[377077309,1754248243214,-151.0,0.00039778,10]
[377077310,1754248243226,-151.0,0.00039778,10]
[377077311,1754248243240,-151.0,0.00039778,10]
[377077312,1754248243253,-151.0,0.00039778,10]
[377077313,1754248243265,-266.08878277,0.00039778,10]
[377077314,1754248243278,-1000.0,0.00039788,120]
[377077315,1754248243290,-215.14063902,0.00039789,2]
[377077316,1754248243304,-152.0,0.000398,120]
[377077317,1754248243315,-2000.0,0.000398,25]
[377077318,1754248243328,-407.0,0.00039866,2]
[377077319,1754248243340,-958.03892474,0.00039869,3]
[377077320,1754248243353,-150.0,0.00039873,5]
[377077321,1754248243365,-502.21827614,0.00039873,5]
[377077322,1754248243378,-500.0,0.00039873,5]
[377077323,1754248243391,-500.0,0.00039873,5]
[377077324,1754248243405,-599.59635731,0.00039873,5]
[377077325,1754248243417,-500.0,0.00039873,5]
[377077326,1754248243431,-500.0,0.00039873,5]
[377077327,1754248243444,-500.0,0.00039873,5]
[377077328,1754248243457,-500.0,0.00039873,5]
[377077329,1754248243470,-500.0,0.00039873,5]
[377077330,1754248243483,-522.08128294,0.00039873,5]
[377077331,1754248243496,-500.0,0.00039873,5]
[377077332,1754248243509,-500.0,0.00039873,5]
[377077333,1754248243522,-569.97181184,0.00039873,5]
[377077334,1754248243535,-500.0,0.00039873,2]
[377077335,1754248243548,-500.0,0.00039873,5]
[377077336,1754248243562,-2874.11677422,0.00039879,3]
[377077337,1754248243576,-270.5781215,0.00039888,2]
[377077338,1754248243590,-1805.52108287,0.00039889,2]
[377077339,1754248243603,-242705.51473956,0.00039889,15]
[377077340,1754248243616,-151.0,0.00039889,14]
[377077341,1754248243630,-151.0,0.00039889,14]
[377077342,1754248243642,-177.789207,0.00039889,14]
[377077343,1754248243652,-151.0,0.00039889,14]
[377077344,1754248243661,-151.0,0.00039889,14]
[377077345,1754248243671,-151.0,0.00039889,14]
[377077346,1754248243680,-151.0,0.00039889,14]
[377077347,1754248243823,-10950.07202722,0.000399,2]
[377077348,1754248243846,-43712.12,0.000399,14]
[377077349,1754248243856,-151.0,0.000399,14]
[377077350,1754248243866,-2072.94,0.000399,7]
[377077351,1754248243875,-2510.06,0.000399,14]
[377077352,1754248243886,-535.57,0.000399,7]
[377077353,1754248243895,-151.0,0.000399,15]
[377077354,1754248243905,-1802.28983057,0.00039904,8]
[377077355,1754248243915,-151.0,0.00039931,14]
[377077356,1754248243924,-151.0,0.00039931,14]
[377077357,1754248243933,-151.0,0.00039931,14]
[377077358,1754248243942,-152.233887,0.0003997,2]
[377077359,1754248243952,-151.0,0.00039999,30]
[377077360,1754248243961,-270.4804011,0.0004,10]
[377077361,1754248243971,-160.0,0.0004,3]
[377077362,1754248243980,-2000.0,0.0004,120]
[377077363,1754248243990,-500.0,0.0004,2]
[377077364,1754248243999,-633.28333998,0.0004,30]
[377077365,1754248244010,-1000.0,0.0004,120]
[377077366,1754248244019,-1299.47,0.0004,120]
[377077367,1754248244029,-300.0,0.0004,120]
[377077368,1754248244039,-151.0,0.0004,14]
[377077369,1754248244049,-151.0,0.0004,14]
[377077370,1754248244058,-151.0,0.0004,14]
[377077371,1754248244067,-150.0,0.0004,120]
[377077372,1754248244077,-508.10068389,0.00040221,5]
[377077373,1754248244087,-312.24807181,0.00040221,5]
[377077374,1754248244096,-200.0,0.00040414,120]
[377077375,1754248244106,-250.0,0.00040421,5]
[377077376,1754248244115,-992.46994751,0.00040421,5]
[377077377,1754248244124,-500.0,0.00040421,5]
[377077378,1754248244133,-500.0,0.00040421,5]
[377077379,1754248244143,-489.15162157,0.00040421,5]
[377077380,1754248244153,-500.0,0.00040489,5]
[377077381,1754248244162,-500.0,0.00040489,5]
[377077382,1754248244172,-500.0,0.00040489,5]
[377077383,1754248244181,-500.0,0.00040489,5]
[377077384,1754248244191,-570.75370754,0.00040489,5]
[377077385,1754248244200,-500.0,0.00040489,5]
[377077386,1754248244209,-553.01407841,0.00040489,5]
[377077387,1754248244219,-500.0,0.00040489,5]
[377077388,1754248244228,-500.0,0.00040489,5]
[377077389,1754248244238,-500.0,0.00040489,5]
[377077390,1754248244247,-13785.68,0.000405,120]
[377077391,1754248244256,-151.0,0.00040664,14]
[377077392,1754248244266,-255.395,0.00040925,14]
[377077393,1754248244275,-350.0,0.00040968,5]
[377077394,1754248244285,-2000.0,0.00041,120]
[377077395,1754248244294,-977.20381926,0.00041,48]
[377077396,1754248244303,-734.48188033,0.00041037,5]
[377077397,1754248244312,-500.0,0.00041037,5]
[377077398,1754248244322,-500.0,0.00041037,5]
[377077399,1754248244331,-500.0,0.00041037,5]
[377077400,1754248244347,-559.58,0.00041049,3]
[377077401,1754248244359,-150.0,0.00041063,2]
[377077402,1754248244368,-500.0,0.00041096,7]
[377077403,1754248244378,-500.0,0.00041096,7]
[377077404,1754248244387,-500.0,0.00041096,7]
[377077405,1754248244397,-500.0,0.00041096,7]
[377077406,1754248244407,-500.0,0.00041096,7]
[377077407,1754248244416,-500.0,0.00041096,5]
[377077408,1754248244425,-500.0,0.00041096,7]
[377077409,1754248244435,-333.93,0.00041096,15]
[377077410,1754248244445,-151.0,0.00041096,120]
[377077411,1754248244457,-152.233887,0.0004131,10]
[377077412,1754248244467,-13785.68,0.00041322,120]
[377077413,1754248244477,-151.0,0.00041432,120]
[377077414,1754248244487,-151.0,0.00041432,120]
[377077415,1754248244497,-450.0,0.00041516,10]
[377077416,1754248244507,-151.0,0.00041675,120]
[377077417,1754248244517,-151.0,0.00041675,120]
[377077418,1754248244526,-200.0,0.00041751,120]
[377077419,1754248244535,-600.48591849,0.00041773,10]
[377077420,1754248244544,-500.0,0.00041773,10]
[377077421,1754248244554,-151.0,0.00041773,120]
[377077422,1754248244564,-151.0,0.00041773,120]
[377077423,1754248244574,-151.0,0.00041773,120]
[377077424,1754248244584,-43712.12,0.000418,14]
[377077425,1754248244594,-152.0,0.000418,120]
[377077426,1754248244604,-151.0,0.000418,120]
[377077427,1754248244614,-151.0,0.000418,120]
[377077428,1754248244624,-151.0,0.000418,120]
[377077429,1754248244634,-151.0,0.000418,120]
[377077430,1754248244643,-151.0,0.000418,120]
[377077431,1754248244653,-151.0,0.000418,120]
[377077432,1754248244663,-151.0,0.000418,120]
[377077433,1754248244672,-1034.85365583,0.00042,120]
[377077451,1754248474202,4508.37510361,0.00025205,30]
[377077452,1754248474225,10000.0,0.00025205,30]
[377077453,1754248474249,21.08089639,0.00025205,30]
[377077454,1754248749811,161.65,0.00026145,7]
[377077455,1754248825264,160.163841,0.00013699,2]
[377077458,1754249054654,178.007489,0.00025778,2]
[377077460,1754249143813,5000.0,0.00026501,2]
[377077461,1754249217331,-160.163841,0.00031311,2]
[377077462,1754249217361,-24.07908522,0.00035368,2]
[377077464,1754249265571,878.34919501,0.00026,2]
[377077465,1754249315372,3600.7485786,0.0002,2]
[377077466,1754249315394,5794.48780509,0.0002,2]
[377077467,1754249319632,363.55126751,0.0002,2]
[377077469,1754249322801,150.0,0.00024401,2]
[377077470,1754249325296,3691.9609274,0.0002,2]
[377077471,1754249325320,3308.0390726,0.0002,2]
[377077472,1754249326044,6691.9609274,0.0002,2]
[377077473,1754249326068,10000.0,0.0002,2]
[377077474,1754249326090,9702.89840016,0.0002,2]
[377077475,1754249328026,297.10159984,0.000215,2]
[377077476,1754249328054,10000.0,0.000215,2]
[377077477,1754249328076,1259.74219716,0.000215,2]
[377077478,1754249328459,1000.0,0.000235,2]
[377077479,1754249340285,155.78506387,0.00025205,2]
[377077544,1754249432966,-4573.16815989,0.000266,2]
[377077545,1754249432977,-221.0,0.00035367,2]
[377077546,1754249432987,-1200.0,0.00035368,3]
[377077547,1754249432997,-153.0,0.00035369,2]
[377077548,1754249433007,-153.0,0.00035369,2]
[377077549,1754249433016,-24.60717762,0.00035369,2]
[377077550,1754249433035,-128.39282238,0.00035369,2]
[377077551,1754249433046,-153.0,0.00035369,2]
[377077552,1754249433056,-153.0,0.00035369,2]
[377077553,1754249433066,-153.0,0.00035369,2]
[377077554,1754249433076,-153.0,0.00035369,2]
[377077555,1754249433086,-153.0,0.00035369,2]
[377077556,1754249433095,-153.0,0.00035369,2]
[377077557,1754249433105,-153.0,0.00035369,2]
[377077558,1754249433115,-3264.01105571,0.00035369,2]
[377077559,1754249433125,-334.24,0.000354,2]
[377077560,1754249433134,-666.0,0.00036115,2]
[377077561,1754249433144,-1000.0,0.0003641,30]
[377077562,1754249433153,-416.298229,0.00036688,2]
[377077563,1754249433163,-1604.4320462,0.00036717,35]
[377077564,1754249433172,-2000.0,0.00037,90]
[377077565,1754249433181,-2000.0,0.00038,90]
[377077566,1754249433191,-200.0,0.00038904,30]
[377077567,1754249433201,-200.0,0.00038904,30]
[377077568,1754249433211,-200.0,0.00038904,30]
[377077569,1754249433221,-2000.0,0.00039,90]
[377077570,1754249433231,-847.02184741,0.00039,2]
[377077571,1754249433240,-423.5109237,0.00039,2]
[377077572,1754249433249,-211.75546185,0.00039,2]
[377077573,1754249433259,-211.75546185,0.00039,2]
[377077574,1754249433268,-1269.0,0.00039417,120]
[377077575,1754249433279,-251.40992923,0.0003942,120]
[377077576,1754249433288,-860.19653362,0.00039563,14]
[377077624,1754249437953,-1339.80346638,0.00039563,14]
[377077626,1754249437962,-176.589,0.00039563,55]
[377077628,1754249437973,-1773.25057975,0.000398,25]
[377077630,1754249437984,-226.74942025,0.000398,25]
[377077631,1754249437993,-151.0,0.00039889,14]
[377077633,1754249438004,-151.0,0.00039889,14]
[377077635,1754249438013,-231.43057975,0.0004,90]
[377077638,1754249438024,-1768.56942025,0.0004,90]
[377077640,1754249438033,-375.71669395,0.00041,90]
[377077643,1754249438053,-1624.28330605,0.00041,90]
[377077645,1754249438062,-151.0,0.00041432,120]
[377077647,1754249438071,-800.0,0.00041652,14]
[377077649,1754249438080,-800.0,0.00041673,14]
[377077651,1754249438089,-273.959632,0.00041675,120]
[377077653,1754249438098,-500.0,0.00041769,2]
[377077655,1754249438107,-255.25622561,0.00041769,31]
[377077657,1754249438117,-166.47801988,0.00041769,31]
[377077659,1754249438126,-500.0,0.00041769,2]
[377077661,1754249438135,-567.93606352,0.00041769,31]
[377077663,1754249438145,-500.0,0.00041769,31]
[377077665,1754249438154,-500.0,0.00041769,2]
[377077667,1754249438163,-161.01437024,0.00041769,2]
[377077669,1754249438172,-500.0,0.00041769,31]
[377077671,1754249438181,-500.0,0.00041769,2]
[377077673,1754249438190,-290.77775377,0.00041769,31]
[377077675,1754249438199,-13127.66021958,0.00041771,15]
[377077677,1754249438209,-1915.82366611,0.00041782,28]
[377077680,1754249438218,-227.244,0.000418,120]
[377077682,1754249438227,-965.14634417,0.00042,120]
[377077684,1754249438236,-280.14106236,0.00042,120]
[377077686,1754249438245,-300.0,0.00042,120]
[377077688,1754249438256,-150.0,0.00042,120]
[377077690,1754249438265,-200.0,0.00042455,120]
[377077692,1754249438274,-160.0,0.0004256,2]
[377077694,1754249438283,-200.0,0.00042565,30]
[377077696,1754249438292,-200.0,0.00042565,30]
[377077698,1754249438302,-200.0,0.00042565,30]
[377077700,1754249438311,-240.0,0.00042565,30]
[377077702,1754249438320,-460.95174316,0.00042568,2]
[377077704,1754249438329,-500.0,0.00042576,10]
[377077706,1754249438339,-12062.47,0.00042999,120]
[377077708,1754249438349,-2000.0,0.00043,120]
[377077710,1754249438358,-506.78,0.00043,120]
[377077712,1754249438367,-6664.18516909,0.00043,30]
[377077714,1754249438376,-150.0,0.00043,120]
[377077716,1754249438386,-430.28127806,0.0004309,2]
[377077718,1754249438395,-1000.0,0.00043124,10]
[377077720,1754249438404,-223.57,0.0004317,10]
[377077722,1754249438413,-234.81965792,0.00043173,7]
[377077724,1754249438422,-447.32,0.0004318,30]
[377077737,1754249438537,-9701.40459891,0.0004318,3]
[377077739,1754249438554,-869.77412244,0.0004318,3]
[377077742,1754249438566,-481.47425679,0.0004318,3]
[377077844,1754249443150,-19089.42943456,0.0004318,3]
[377077845,1754249443161,-2019.76300523,0.0004318,3]
[377077846,1754249443171,-304.82392321,0.00043189,31]
[377077847,1754249443181,-1000.0,0.00043189,120]
[377077848,1754249443190,-180852.494476,0.0004319,3]
[377077849,1754249443200,-12118.5780314,0.0004319,3]
[377077850,1754249443210,-163685.79764027,0.000432,2]
[377077863,1754249446193,-186.31,0.0004318,10]
[377077864,1754249446203,-328.17213323,0.000432,2]
[377077865,1754249446264,-2870.47273219,0.000432,2]
[377077874,1754249717605,160.069507,0.00013699,2]
[377077892,1754250414103,-160.069507,0.00034247,2]
[377077893,1754250414125,-23.30928997,0.00035,5]
[377077897,1754250512774,151.0,0.00024,120]
[377077898,1754250514486,151.0,0.000263,120]
[377077899,1754250515904,151.0,0.000287,120]
[377077907,1754250632285,-151.0,0.00031,120]
[377077908,1754250632295,-116.15803426,0.00032147,2]
[377077909,1754250632391,-33.84196574,0.00032147,2]
[377077910,1754250632401,-293.85068442,0.0003243,7]
[377077911,1754250632411,-151.0,0.000334,120]
[377077912,1754250632420,-88.97662197,0.00035,5]
[377078151,1754250638195,-200.0,0.00034194,120]
[377078152,1754250638205,-1082.75037626,0.00035,5]
[377078153,1754250638215,-151.0,0.000357,120]
[377078154,1754250638225,-300.81,0.000358,2]
[377078155,1754250638235,-409.05543898,0.000359,33]
[377078156,1754250638244,-2033.8840355,0.00037986,2]
[377078157,1754250638253,-151.0,0.000381,120]
[377078158,1754250638263,-917.7246871,0.00038156,2]
[377078159,1754250638273,-1753.48130216,0.00038267,2]
[377078160,1754250638288,-6175.69272135,0.00038267,2]
[377078635,1754250644063,-3220.99556832,0.00038267,2]
[377078638,1754250644074,-348.9007,0.00038267,2]
[377078640,1754250644084,-208.149114,0.00038286,2]
[377078642,1754250644094,-424.908,0.00039123,2]
[377078644,1754250644104,-241.644,0.00039123,2]
[377078646,1754250644115,-407.0,0.00039123,2]
[377078648,1754250644124,-300.0,0.0004,7]
[377078650,1754250644134,-2000.0,0.0004,120]
[377078652,1754250644145,-151.0,0.000404,120]
[377078654,1754250644155,-2000.0,0.00041,120]
[377078656,1754250644164,-251.40992923,0.00041471,120]
[377078658,1754250644174,-200.0,0.00041909,30]
[377078660,1754250644184,-200.0,0.00041909,30]
[377078662,1754250644193,-200.0,0.00041909,30]
[377078665,1754250644203,-200.0,0.00041909,30]
[377078667,1754250644212,-2000.0,0.00042,120]
[377078669,1754250644222,-407.0,0.00042123,2]
[377078671,1754250644231,-233.41461336,0.00042754,2]
[377078673,1754250644240,-176.59,0.00042754,65]
[377078675,1754250644250,-151.0,0.000428,120]
[377078677,1754250644259,-1676.34570789,0.00042865,28]
[377078679,1754250644269,-484.60877257,0.00042866,2]
[377078681,1754250644278,-166.62,0.00042954,10]
[377078683,1754250644287,-1135.4,0.00042955,30]
[377078685,1754250644297,-199.94,0.00042955,10]
[377078687,1754250644306,-500.0,0.00042964,31]
[377078689,1754250644315,-500.0,0.00042964,2]
[377078691,1754250644325,-369.99551319,0.00042964,7]
[377078693,1754250644334,-500.0,0.00042964,31]
[377078695,1754250644345,-500.0,0.00042964,2]
[377078697,1754250644355,-500.0,0.00042964,31]
[377078699,1754250644364,-1375.35718669,0.00042964,31]
[377078701,1754250644374,-1375.35718669,0.00042964,31]
[377078703,1754250644383,-1375.35718669,0.00042964,31]
[377078705,1754250644394,-1375.35718669,0.00042964,31]
[377078707,1754250644408,-1375.35718669,0.00042964,31]
[377078709,1754250644419,-1375.35718669,0.00042964,31]
[377078712,1754250644429,-1375.35718669,0.00042964,31]
[377078714,1754250644438,-1375.35718669,0.00042964,31]
[377078716,1754250644453,-1375.35718669,0.00042964,31]
[377078718,1754250644464,-1375.35718669,0.00042964,31]
[377078720,1754250644473,-1375.35718669,0.00042964,31]
[377078722,1754250644482,-1375.35718669,0.00042964,31]
[377078724,1754250644492,-1375.35718669,0.00042964,31]
[377078726,1754250644501,-1375.35718669,0.00042964,31]
[377078728,1754250644510,-1375.35718669,0.00042964,31]
[377078730,1754250644519,-1375.35718669,0.00042964,31]
[377078732,1754250644529,-1375.35718669,0.00042964,31]
[377078734,1754250644538,-1375.35718669,0.00042964,31]
[377078736,1754250644548,-1375.35718669,0.00042964,31]
[377078738,1754250644558,-1375.35718669,0.00042964,31]
[377078740,1754250644567,-1375.35718669,0.00042964,31]
[377078742,1754250644576,-1375.35718669,0.00042964,31]
[377078744,1754250644586,-1375.35718669,0.00042964,31]
[377078746,1754250644595,-1375.35718669,0.00042964,31]
[377078748,1754250644604,-1375.35718669,0.00042964,31]
[377078750,1754250644614,-1375.35718669,0.00042964,31]
[377078752,1754250644623,-1375.35718669,0.00042964,31]
[377078754,1754250644632,-1375.35718669,0.00042964,31]
[377078756,1754250644642,-1375.35718669,0.00042964,31]
[377078758,1754250644651,-1375.35718669,0.00042964,31]
[377078760,1754250644661,-1375.35718669,0.00042964,31]
[377078762,1754250644670,-1375.35718669,0.00042964,31]
[377078764,1754250644681,-1375.35718669,0.00042964,31]
[377078766,1754250644690,-1375.35718669,0.00042964,31]
[377078768,1754250644701,-1375.35718669,0.00042964,31]
[377078770,1754250644711,-1375.35718669,0.00042964,31]
[377078772,1754250644720,-1375.35718669,0.00042964,31]